Cogmind - Beta 13 @@@ ROGUE MODE // 2024.05.30 @ 22:22:30 Player: Blade Result: Destroyed by Y-45 Defender with Heavy Assault Rifle Performance ------------- Evolutions (1) 500 Regions Visited (3) 600 Robots Destroyed (8) 40 Value Destroyed (309) 309 Prototype IDs (0) 0 Alien Tech Used (0) 0 Bonus (0) 0 TOTAL SCORE: 1449 Bonus ------- None Cogmind --------- Core Integrity 0/400 Matter 300/300 Energy 100/100 System Corruption 0% Temperature Cool (9) Movement Core (700) Ox13 Location -9/Storage Parts ------- > --- POWER (1) -------- (None) > --- PROPULSION (4) --- (None) > --- UTILITY (2) ------ High-capacity Storage Unit > --- WEAPON (2) ------- (None) > --- INVENTORY (20) --- Wheel Wheel Grenade Launcher Peak State ------------ > --- POWER ------------ Light Ion Engine > --- PROPULSION ------- Light Treads Light Treads Aluminum Leg Aluminum Leg > --- UTILITY ---------- High-capacity Storage Unit > --- WEAPON ----------- Medium Laser Light Assault Rifle > --- INVENTORY -------- Wheel Wheel Assault Rifle Grenade Launcher [Rating: 8] Favorites ----------- Power Light Ion Engine Engine Light Ion Engine Propulsion Aluminum Leg Treads Light Treads Leg Aluminum Leg Utility High-capacity Storage Unit Storage High-capacity Storage Unit Weapon Medium Laser Energy Gun Medium Laser Ballistic Gun Light Assault Rifle Build | -11 -10 -9 -9 ------- Run | Yrd Mat Mat Sto Slots Evolved 2 | . . 2 . Power . | . . . . Propulsion 2 | . . 2 . Utility . | . . . . Weapon . | . . . . Parts Attached 8 | . 2 . 6 Power 1 | . . . 1 Engine 1 | . . . 1 Core . | . . . . Reactor . | . . . . Propulsion 2 | . . . 2 Treads 2 | . . . 2 Leg . | . . . . Wheel . | . . . . Hover . | . . . . Flight . | . . . . Utility 1 | . 1 . . Device . | . . . . Storage 1 | . 1 . . Processor . | . . . . Hackware . | . . . . Protection . | . . . . Artifact . | . . . . Weapon 4 | . 1 . 3 Energy Gun 1 | . . . 1 Energy Cannon . | . . . . Ballistic Gun 3 | . 1 . 2 Ballistic Cannon . | . . . . Launcher . | . . . . Special Weapon . | . . . . Impact Weapon . | . . . . Slashing Weapon . | . . . . Piercing Weapon . | . . . . Special Melee Weapon . | . . . . Unidentified Prototypes . | . . . . Parts Lost 11 | . . . 11 Power 2 | . . . 2 Propulsion 4 | . . . 4 Utility . | . . . . Weapon 5 | . . . 5 Highest Loss Streak 11 | . . . 11 To Critical Strikes . | . . . . Average Slot Usage (%) 72 | . 85 66 55 Engine 11 | . 14 11 7 Treads 1 | . . . 4 Leg 21 | . 28 22 13 Storage 12 | . 14 11 11 Energy Gun 16 | . 22 11 8 Ballistic Gun 7 | . 5 11 10 Naked Turns . | . . . . Heaviest Build 46 | 12 46 46 46 Greatest Support 20 | 20 20 20 20 Greatest Overweight (x) 13 | . 2 2 13 Average Overweight (x) . | . . 2 2 Largest Inventory Capacity 20 | 8 20 20 20 Average Capacity 15 | 8 11 20 20 Most Carried 7 | 6 7 7 7 Average Carried 6 | 6 6 7 5 Final Capacity 20 | 8 20 20 20 Final Carried 7 | 6 7 7 3 Class Distribution -------------------- 100% | Mutant Dominant Class ---------------- Mutant | -10/Materials Mutant | -9/Materials Mutant | -9/Storage Resources | -11 -10 -9 -9 ----------- Run | Yrd Mat Mat Sto Matter Collected 306 | 200 . . 106 Remotely . | . . . . Salvage Created 378 | . 97 . 281 Parts 23 | . 5 . 18 Haulers Intercepted . | . . . . Recyclers Shooed . | . . . . Parts Field Recycled . | . . . . Retrieved Matter . | . . . . Parts Self-Destructed . | . . . . Prevented . | . . . . Kills | -11 -10 -9 -9 ------- Run | Yrd Mat Mat Sto Combat Hostiles Destroyed 7 | . 2 . 5 Guns 7 | . 2 . 5 Classes Destroyed 3 | . 2 . 1 Operator 1 | . 1 . . Grunt 2 | . 2 . . Sentry 5 | . . . 5 Best Kill Streak 3 | . 2 . 3 Combat Bots Only 3 | . 2 . 3 Max Kills in Single Turn 1 | . 1 . 1 Gunslinging . | . . . . Exploded . | . . . . Melee . | . . . . Uniques/NPCs Destroyed . | . . . . Combat | -11 -10 -9 -9 -------- Run | Yrd Mat Mat Sto Hostile Shots Fired 150 | . 17 5 128 Missed 34 | . 5 1 28 Damage Taken 1649 | . 136 36 1477 Core 452 | . 45 8 399 Absorbed by Shields . | . . . . Core Remaining (%) 91 | 100 82 . . Volleys Fired 41 | . 11 . 30 Largest 2 | . 2 . 2 Hottest 100 | . 100 . 79 Shots Fired 78 | . 22 . 56 Gun 78 | . 22 . 56 Cannon . | . . . . Launcher . | . . . . Special . | . . . . Kinetic 33 | . . . 33 Thermal 45 | . 22 . 23 Explosive . | . . . . Electromagnetic . | . . . . Robot Hit Streak 14 | . 11 . 14 Robot Miss Streak 2 | . 2 . 2 Penetration Max . | . . . . Secondary Targets 3 | . 2 . 1 Max Gunslinging Chain 1 | . 1 . 1 Shots Hit Robots 58 | . 16 . 42 Core Hits 19 | . 6 . 13 Critical Kills . | . . . . Critical Parts Destroyed . | . . . . Critical Strikes 1 | . . . 1 Burn 1 | . . . 1 Melee Attacks . | . . . . Impact . | . . . . Slashing . | . . . . Piercing . | . . . . Sneak Attacks . | . . . . Combat Hostiles . | . . . . Follow-up Attacks . | . . . . Damage Inflicted 707 | . 200 . 507 Guns 706 | . 199 . 507 Cannons . | . . . . Explosions . | . . . . Melee . | . . . . Ramming 1 | . 1 . . Kinetic 294 | . . . 294 Thermal 412 | . 199 . 213 Explosive . | . . . . Electromagnetic . | . . . . Impact . | . . . . Slashing . | . . . . Piercing . | . . . . Highest Corruption . | . . . . Average Corruption . | . . . . Corruption Purged . | . . . . Corruption Blocked . | . . . . Overload Shots . | . . . . Overflow Damage . | . . . . Projectiles . | . . . . Explosions . | . . . . Melee . | . . . . Knockbacks . | . . . . Impact . | . . . . Kinetic . | . . . . Secondary . | . . . . Self-Inflicted Damage . | . . . . Shots . | . . . . Rammed . | . . . . Targets Rammed 1 | . 1 . . Kicked 1 | . 1 . . Crushed . | . . . . Highest Temperature 300 | . 300 . 180 Average Temperature 91 | . 109 . 77 Received Heat Transfer 567 | . 72 . 495 Siege Activations . | . . . . Robots Corrupted . | . . . . Combat Hostiles . | . . . . Parts Fried . | . . . . Impact Corruptions . | . . . . Robots Melted . | . . . . Combat Hostiles . | . . . . Parts Melted 6 | . 4 . 2 Heat Transferred 1258 | . 592 . 666 Parts Sabotaged . | . . . . Parts Stolen . | . . . . Parts Stripped . | . . . . Power Chain Reactions . | . . . . Alert | -11 -10 -9 -9 ------- Run | Yrd Mat Mat Sto Peak Influence 121 | . 70 29 121 Initial 29 | . . 29 11 Average 41 | . 32 29 57 Maximum Alert Level . | . . . . Low Security (%) 100 | 100 100 100 100 Level 1 . | . . . . Level 2 . | . . . . Level 3 . | . . . . Level 4 . | . . . . Level 5 . | . . . . High Security . | . . . . Max Security . | . . . . Squads Dispatched 3 | . 1 . 2 Investigation . | . . . . Extermination . | . . . . Reinforcement 1 | . 1 . . Assault . | . . . . Garrison 2 | . . . 2 Intercept . | . . . . Searches Triggered . | . . . . Construction Impeded . | . . . . Haulers Reinforced . | . . . . Active Scanning Responses . | . . . . Cargo Convoy Interrupts . | . . . . Stealth | -11 -10 -9 -9 --------- Run | Yrd Mat Mat Sto Distress Signals 2 | . . . 2 Communications Jammed . | . . . . Distress Signals . | . . . . Times Spotted 16 | . 5 2 9 Peak Tracking Total 8 | . 3 4 8 Tactical Retreats 1 | . 1 . . Traps | -11 -10 -9 -9 ------- Run | Yrd Mat Mat Sto Traps Triggered . | . . . . Indirectly . | . . . . Trap Hack Attempts . | . . . . Triggered . | . . . . Disarmed . | . . . . Reprogrammed . | . . . . Reused . | . . . . Traps Extracted . | . . . . Installed . | . . . . Triggered . | . . . . Machines | -11 -10 -9 -9 ---------- Run | Yrd Mat Mat Sto Machines Disabled . | . . . . Max in Single Turn . | . . . . Machines Repaired . | . . . . Machines Dismantled . | . . . . Machines Sabotaged . | . . . . Overloaded Fab Kills . | . . . . Hacking | -11 -10 -9 -9 --------- Run | Yrd Mat Mat Sto Machines Accessed 2 | . 2 . . Terminals 2 | . 2 . . Fabricators . | . . . . Repair Stations . | . . . . Recycling Units . | . . . . Scanalyzers . | . . . . Garrison Access . | . . . . Total Hacks 3 | . 3 . . Successful . | . . . . Failed 3 | . 3 . . Catastrophic 2 | . 2 . . Database Lockouts . | . . . . Manual 3 | . 3 . . Terminals 3 | . 3 . . Fabricators . | . . . . Repair Stations . | . . . . Recycling Units . | . . . . Scanalyzers . | . . . . Garrison Access . | . . . . Terminal Hacks . | . . . . Fabricator Hacks . | . . . . Repair Station Hacks . | . . . . Recycling Unit Hacks . | . . . . Scanalyzer . | . . . . Garrison Access Hacks . | . . . . Unauthorized Hacks . | . . . . Terminals . | . . . . Fabricators . | . . . . Repair Stations . | . . . . Recycling Units . | . . . . Scanalyzers . | . . . . Garrison Access . | . . . . Data Cores Recovered . | . . . . Used . | . . . . Hacking Detections 2 | . 2 . . Full Trace Events . | . . . . Feedback Events . | . . . . Feedback Blocked . | . . . . Robot Schematics Acquired . | . . . . Robots Built . | . . . . Authchips . | . . . . Time . | . . . . Total Robot Build Rating . | . . . . Part Schematics Acquired . | . . . . Parts Built . | . . . . Authchips . | . . . . Time . | . . . . Total Part Build Rating . | . . . . Parts Repaired . | . . . . Time . | . . . . Parts Recycled . | . . . . Recycled Matter . | . . . . Retrieved Matter . | . . . . Retrieved Components . | . . . . Parts Scanalyzed . | . . . . Part Schematics Acquired . | . . . . Parts Damaged . | . . . . Bothacking | -11 -10 -9 -9 ------------ Run | Yrd Mat Mat Sto Used RIF Installer . | . . . . Robots Hacked . | . . . . Non-combat . | . . . . Combat . | . . . . Robot Hacks Applied . | . . . . Relay Couplers Released . | . . . . Fabnet Peak Effective % . | . . . . Robots Rewired . | . . . . Allies Hacked . | . . . . Hacks Repelled . | . . . . Allies | -11 -10 -9 -9 -------- Run | Yrd Mat Mat Sto Total Allies . | . . . . Largest Group . | . . . . Highest-Rated Group . | . . . . Highest-Rated Ally . | . . . . Total Orders . | . . . . Ally Attacks . | . . . . Total Damage . | . . . . Kills . | . . . . Allies Corrupted . | . . . . Allies Melted . | . . . . Intel | -11 -10 -9 -9 ------- Run | Yrd Mat Mat Sto Robot Analysis Total . | . . . . Derelict Logs Recovered . | . . . . Drone Launches . | . . . . Drone Recoveries . | . . . . Exploration | -11 -10 -9 -9 ------------- Run | Yrd Mat Mat Sto Turns Passed 499 | 2 271 29 197 Spaces Moved 214 | 2 161 12 39 Core 1 | . . . 1 Treads 6 | . . . 6 Legs 207 | 2 161 12 32 Wheels . | . . . . Hover . | . . . . Flight . | . . . . Fastest Speed 120 | 120 120 260 260 Average Speed 176 | 120 145 260 280 Slowest Speed 700 | 120 260 260 700 Overloaded Moves . | . . . . Propulsion Burnouts . | . . . . Robots Hopped . | . . . . Cave-ins Triggered . | . . . . Exploration Rate (%) 11 | 2 29 2 13 Regions Visited 3 Branch Regions 1 Pre-discovered Areas . | . . . . Known Exits Taken . | . . . . Unknown Exits Taken 3 | 1 1 1 . Scrap Searched . | . . . . Spaces Dug . | . . . . Terrain Destroyed . | . . . . Melee . | . . . . Projectile . | . . . . AOE . | . . . . Terrain Rammed . | . . . . Walls Destroyed . | . . . . Machines Disabled . | . . . . Actions | -11 -10 -9 -9 --------- Run | Yrd Mat Mat Sto Total 266 | 1 177 11 77 Wait 2 | . . . 2 Move 211 | 1 160 11 39 Hop . | . . . . Pick Up 1 | . 1 . . Fast Attach 4 | . 2 . 2 Attach 4 | . . . 4 Detach . | . . . . Swap . | . . . . Drop 2 | . 2 . . Fire 41 | . 11 . 30 Melee . | . . . . Ram . | . . . . Kick 1 | . 1 . . Crush . | . . . . Escape Stasis . | . . . . Rewire . | . . . . Trap . | . . . . Miscellaneous . | . . . . Route ------- -11/Scrapyard -10/Materials -9/Materials -9/Storage History --------- Turn | Location | Event 1 | -11/Scrapyard | Discovered new exit (range 1) 3 | -11/Scrapyard | Entered Materials 180 | -10/Materials | Discovered new exit (range 15) 274 | -10/Materials | Entered another Materials area 274 | -9/Materials | Evolved 2 slots: Propulsion x2 274 | -9/Materials | Discovered new exit (range 7) 303 | -9/Materials | Entered Storage 317 | -9/Storage | Build established: Mutant 391 | -9/Storage | Garrison activated, responded to threat 440 | -9/Storage | Core integrity fell below 50% 491 | -9/Storage | Core integrity fell below 20% 500 | -9/Storage | Destroyed by Y-45 Defender with Heavy Assault Rifle Last Messages --------------- 00449_ Assault Rifle destroyed. 00452_ Acquired Hvy. Assault Rifle. 00452_ K-01 Serf collects debris. 00457_ Acquired Beam Rifle. 00458_ K-01 Serf collects debris. 00465_ Heat Sink melted. 00465_ Y-45 Defender destroyed. 00468_ Acquired 27 matter. 00472_ Acquired 3 matter. 00475_ Lgt. Treads destroyed. 00475_ K-01 Serf collects debris. 00478_ Acquired 3 matter. 00478_ K-01 Serf suffers critical hit (Burn). 00478_ K-01 Serf suffers critical hit (Destroy). 00478_ K-01 Serf destroyed. 00481_ Acquired 3 matter. 00490_ U-05 Engineer builds a Door. 00493_ Acquired 3 matter. 00496_ Beam Rifle destroyed. 00496_ Hvy. Assault Rifle destroyed. Map ----- +----------------------------------------------------+ | ?????????????????????????????????????????? | | ?????????????????????????????????????????? | | ?????????????????????????????????????????? | | ?????????????????????????????????????????? | | ?????????????????????????????????????????? | | ?????????????????????????????????????????? | | ?????#####???????????????????????????????? | | ?????# #???????????????????????????????? | | ?????# #???????????????????????????????? | | ?????# #???????????????????????????????? | | ?????# #???????????????????????????????? | | ?????# #???????????????????????????????? | | ?????# #????###????????????????????????? | | ?????# #????# ###??????????????????????? | | ?????# #???? #??????????????????????? | | ?????# #???"" #??????????????????????? | | ?????# # """ #??????????????????????? | | ?????# # """ #??????????????????????? | | ?????# # #??????????????????????? | | ?????# # """ #??????????????????????? | | ?????# # """ #??????????????????????? | | ?????# # """ #??????????????????????? | | ?????# #?? Y#??????????????????????? | | ?????# #####+##/######+#### ????????? | | ?????# ! Y ????????? | | ?????# Y =%@!% ????????? | | ?????# Y =*%^! ????????? | | ?????# ########+########### ????????? | | ?????# # ![%= #?????????????????? | | ?????# # """ ""[=""" #?????????????????? | | ?????# # """ """!""" #?????????????????? | | ?????# # """ """ """ #?????????????????? | | ?????# # ?????????????????? | | ?????# # #?????????????????? | | ?????# #######+#######?????????????????? | | ?????# ????? ????????????????????????? | | ?????# ????? ????????????????????????? | | ?????# #?????##????????????????????????? | | ?????# ????????????????????????????????? | | ?????? ????????????????????????????????? | | ?????????????????????????????????????????? | | ?????????????????????????????????????????? | | ?????????????????????????????????????????? | | ?????????????????????????????????????????? | | ?????????????????????????????????????????? | | ?????????????????????????????????????????? | | ?????????????????????????????????????????? | | ?????????????????????????????????????????? | | ?????????????????????????????????????????? | | ?????????????????????????????????????????? | +----------------------------------------------------+ Best States ------------- Heat Dissipation 28 Energy Generation 10 Energy Capacity 125 Matter Stores 300 Matter Capacity 300 Sight Range 16 Terrain Scan Density 10 Evasion (%) 55 Recoil Reduction 2 Item Schematics ----------------- None Robot Schematics ------------------ None Fabricated ------------ Nothing Alien Tech Used ----------------- None Achievements -------------- None Challenges ------------ None Game ------ Seed RefineryInertialLegs Manual? 0 Play Time 00:04:20 Cumulative 65.8 hours Start 2024.05.30 @ 22:19:23 End 2024.05.30 @ 22:22:30 Sessions 1 Manual Loads 0 Difficulty Rogue Special Mode None Game No. 86 Rogue 2 Adventurer 79 Explorer 5 Win Type - Total 2 Types 2/0/0/0/0/0/0/0/0 Lore% 34 Gallery% 49 Achievement% 37 Wizard Run 0 Options --------- Layout 1 ASCII 0 Keyboard 0 Movement Arrows Keybinds 0 Fullscreen 2 Font 24/Smallcaps Map View 50x35 Zoom Use 0% Tactical HUD 1 Map Filters NONE Filters NONE Steam 1 RUN: a55c8718-058b-4f0c-b962-fae5fe424905